bitfinex-derivatives/quotes_SOLF0:USTF0_20250714
["timestamp","ask_amount","ask_price","bid_price","bid_amount"]
[1752453416546,6.1892,161.5,161.46,9.6003]
[1752453416750,3.69,161.49,161.46,3.41]
[1752453416948,3.69,161.49,161.44,3.03469863]
[1752453417152,3.69,161.45,161.43,3.41]
[1752453417353,3.69,161.44,161.43,3.41]
[1752453417655,3.69,161.48,161.44,9.6014]
[1752453418554,9.8799,161.48,161.44,9.6014]
[1752453418853,3.69,161.46,161.45,9.6008]
[1752453419054,3.69,161.5,161.45,3.41]
[1752453419553,3.69,161.5,161.47,9.6003]
[1752453419755,3.69,161.5,161.48,3.41]
[1752453419956,3.69,161.49,161.47,9.6003]
[1752453420849,3.69,161.49,161.46,3.65]
[1752453420850,3.53,161.48,161.46,3.65]
[1752453421155,3.03654782,161.47,161.42,3.65]
[1752453421348,3.53,161.46,161.43,3.65]
[1752453421554,3.53,161.45,161.44,3.65]
[1752453421752,3.03654782,161.49,161.44,3.65]
[1752453422056,3.53,161.45,161.44,3.65]
[1752453422659,3.53,161.45,161.44,9.8414]
[1752453424264,3.53,161.45,161.44,3.65]
[1752453426162,3.53,161.45,161.44,9.8414]
[1752453426861,4.48426353,161.48,161.46,3.65]
[1752453426862,3.53,161.48,161.46,3.65]
[1752453427058,3.53,161.48,161.47,3.65]
[1752453427360,3.53,161.48,161.44,3.03654782]
[1752453427655,3.53,161.48,161.46,3.65]
[1752453428057,3.53,161.48,161.45,9.8408]
[1752453428360,3.53,161.47,161.44,3.65]
[1752453428563,3.53,161.47,161.43,3.65]
[1752453429158,3.53,161.47,161.42,3.03654782]
[1752453429359,6.1905,161.47,161.43,6.1917]
[1752453429563,3.53,161.46,161.43,3.65]
[1752453430361,3.53,161.46,161.43,9.8416]
[1752453431763,3.53,161.45,161.43,6.1916]
[1752453431960,3.53,161.45,161.42,6.1921]
[1752453432356,3.53,161.45,161.4,3.03654782]
[1752453432560,3.53,161.45,161.43,3.65]
[1752453433165,3.53,161.45,161.42,6.192]
[1752453433968,3.03654782,161.47,161.41,6.1925]
[1752453434161,3.53,161.46,161.41,6.1925]
[1752453434466,3.53,161.46,161.41,9.8425]
[1752453434661,3.53,161.43,161.42,6.1922]
[1752453435566,3.53,161.43,161.42,9.8422]
[1752453436366,3.53,161.43,161.42,3.65]
[1752453438062,3.53,161.43,161.4,9.8429]
[1752453438362,3.03654782,161.43,161.36,3.65]
[1752453438567,6.1929,161.41,161.38,6.1937]
[1752453438757,3.53,161.4,161.37,3.65]
[1752453439165,3.53,161.39,161.38,3.65]
[1752453439666,3.53,161.39,161.38,9.8437]
[1752453440471,3.03654782,161.45,161.38,3.65]
[1752453440768,3.53,161.44,161.38,3.65]
[1752453440964,6.192,161.43,161.39,6.1931]
[1752453441273,3.53,161.41,161.4,3.65]
[1752453442167,3.53,161.41,161.4,9.843]
[1752453442768,3.53,161.41,161.4,3.65]
[1752453443572,6.1923,161.42,161.39,3.65]
[1752453443773,3.53,161.4,161.39,3.65]
[1752453444470,3.53,161.44,161.41,3.65]
[1752453444772,9.7217,161.44,161.42,3.65]
[1752453444972,3.53,161.43,161.42,3.65]
[1752453445170,3.53,161.48,161.42,3.65]
[1752453445376,3.53,161.48,161.45,6.1908]
[1752453445670,4.49693773,161.51,161.45,3.65]
[1752453445871,4.49693773,161.51,161.44,3.03621648]
[1752453445872,3.53,161.47,161.44,9.22741648]
[1752453446062,3.53,161.47,161.44,3.03621648]
[1752453446266,3.53,161.47,161.46,3.65]
[1752453446973,3.53,161.46,161.45,3.65]
[1752453449071,3.53,161.46,161.45,9.841]
[1752453449465,3.53,161.49,161.46,6.1905]
[1752453449667,3.53,161.49,161.44,3.03621648]
[1752453449874,3.53,161.48,161.47,3.65]
[1752453452671,6.1889,161.51,161.47,9.8403]
[1752453452871,3.5,161.5,161.49,3.4]
[1752453453076,3.5,161.5,161.48,3.4]
[1752453453772,3.5,161.49,161.48,3.4]
[1752453454474,3.5,161.48,161.47,6.1902]
[1752453454673,3.5,161.48,161.46,3.4]
[1752453455775,3.5,161.47,161.46,9.5904]
[1752453456171,3.5,161.49,161.47,3.4]
[1752453456377,3.5,161.49,161.46,6.1904]
[1752453456378,3.5,161.49,161.48,3.4]
[1752453457474,9.6895,161.49,161.48,3.4]
[1752453457675,3.5,161.48,161.47,3.4]
[1752453458380,3.5,161.5,161.43,3.03623252]
[1752453458677,3.5,161.48,161.43,3.4]
[1752453458880,6.1909,161.46,161.43,9.5916]
[1752453459181,3.5,161.44,161.43,3.4]
[1752453459879,3.5,161.48,161.42,3.4]
[1752453460283,7.99693773,161.48,161.42,3.4]
[1752453460482,3.5,161.47,161.43,3.4]
[1752453460682,6.1908,161.46,161.43,9.5916]
[1752453460883,3.5,161.45,161.43,3.4]
[1752453461079,3.5,161.48,161.43,3.4]
[1752453461483,6.1903,161.47,161.44,6.1913]
[1752453461982,3.5,161.46,161.45,3.4]
[1752453462692,3.5,161.47,161.46,3.4]
[1752453464484,3.5,161.49,161.45,3.03567089]
[1752453464680,3.5,161.49,161.46,3.4]
[1752453465281,3.5,161.49,161.48,3.4]
[1752453468092,3.5,161.49,161.46,9.5905]
[1752453468393,3.5,161.49,161.46,6.1905]
[1752453468590,3.5,161.48,161.47,9.5903]
[1752453468985,3.5,161.48,161.46,6.1905]
[1752453469291,6.1893,161.5,161.46,9.5905]
[1752453469495,3.5,161.47,161.46,9.5905]
[1752453469792,3.5,161.5,161.48,3.4]
[1752453470593,3.5,161.5,161.49,3.4]
[1752453471792,3.5,161.5,161.49,9.5895]
[1752453472195,3.5,161.5,161.39,10.20061343]
[1752453472493,3.5,161.5,161.45,3.03567089]
[1752453472692,3.5,161.5,161.46,3.4]
[1752453473293,3.5,161.49,161.46,3.4]
[1752453473593,3.5,161.49,161.48,3.4]
[1752453473987,3.5,161.49,161.48,9.5899]
[1752453474391,3.5,161.52,161.48,3.4]
[1752453474592,3.5,161.52,161.5,3.4]
[1752453474793,3.5,161.52,161.51,3.4]
[1752453475990,9.6884,161.52,161.49,9.22497089]
[1752453476289,3.5,161.51,161.48,6.1897]
[1752453476595,3.5,161.5,161.49,3.4]
[1752453477093,3.5,161.5,161.49,9.5894]
[1752453477694,3.5,161.52,161.5,6.189]
[1752453477895,6.1877,161.54,161.5,9.589]
[1752453478085,3.5,161.54,161.5,3.4]
[1752453478289,3.5,161.55,161.5,3.4]
[1752453478486,6.1874,161.55,161.52,3.4]
[1752453478686,3.5,161.53,161.52,3.4]
[1752453479197,3.5,161.54,161.53,3.4]
[1752453479789,9.6876,161.54,161.53,3.4]
[1752453480196,9.6876,161.54,161.5,6.1889]
[1752453480399,3.37,161.53,161.52,3.39]
[1752453482596,3.37,161.56,161.52,3.39]
[1752453482796,9.5571,161.56,161.53,3.39]
[1752453482992,3.37,161.55,161.53,3.39]
[1752453483193,3.37,161.55,161.54,3.39]
[1752453484993,3.37,161.59,161.54,3.39]
[1752453485290,4.49175697,161.61,161.57,3.03567089]
[1752453485492,9.555,161.61,161.58,3.39]
[1752453485794,9.555,161.61,161.58,9.576]
[1752453485999,9.555,161.61,161.6,3.39]
[1752453486399,3.37,161.59,161.58,3.39]
[1752453486595,4.49139399,161.64,161.57,3.03567089]
[1752453486899,3.37,161.63,161.57,6.42567089]
[1752453487295,6.1856,161.6,161.57,9.22207089]
[1752453487493,3.37,161.59,161.58,3.39]
[1752453487798,3.37,161.57,161.56,3.39]
[1752453489205,3.37,161.55,161.54,3.39]
[1752453489497,3.37,161.56,161.55,3.39]
[1752453490097,3.37,161.57,161.56,3.39]
[1752453491703,9.5564,161.57,161.56,3.39]
[1752453492000,3.37,161.56,161.53,3.39]
[1752453492192,6.1878,161.54,161.52,3.39]
[1752453492391,3.37,161.53,161.52,3.39]
[1752453492593,3.37,161.52,161.49,3.39]
[1752453492901,3.37,161.52,161.51,3.39]
[1752453493702,3.37,161.54,161.51,3.39]
[1752453493890,3.37,161.54,161.48,717.57291905]
[1752453493891,3.37,161.53,161.52,3.39]
[1752453497301,3.37,161.53,161.5,3.39]
[1752453497597,9.5581,161.53,161.5,3.39]
[1752453497801,9.5581,161.53,161.51,3.39]
[1752453497802,3.37,161.52,161.51,3.39]
[1752453498194,3.03291905,161.57,161.5,9.22181905]
[1752453498400,3.37,161.56,161.51,3.39]
[1752453498798,6.1879,161.54,161.51,3.39]
[1752453498999,3.37,161.52,161.51,3.39]
[1752453500199,3.03291905,161.58,161.52,3.39]
[1752453500404,7.52240002,161.58,161.52,3.39]
[1752453500604,3.03291905,161.58,161.52,3.39]
[1752453500804,3.37,161.57,161.52,3.39]
[1752453501306,6.1874,161.55,161.52,9.5782]
[1752453501508,3.37,161.54,161.52,9.5782]
[1752453501701,3.37,161.53,161.52,9.5782]
[1752453503104,9.558,161.53,161.5,6.42291905]
[1752453503400,3.37,161.52,161.51,3.39]
[1752453504303,3.03291905,161.54,161.46,3.03291905]
[1752453504607,3.37,161.53,161.47,3.39]
[1752453504908,6.1889,161.51,161.48,6.1896]
[1752453505110,3.37,161.5,161.49,3.39]
[1752453505607,3.37,161.52,161.47,3.39]
[1752453505801,5.18599844,161.58,161.43,403.50375704]
[1752453505802,3.37,161.54,161.5,3.03291905]
[1752453506000,5.18599844,161.59,161.5,3.03291905]
[1752453506001,3.37,161.55,161.51,3.39]
[1752453506209,3.37,161.55,161.52,6.1883]
[1752453506501,3.37,161.55,161.54,3.39]
[1752453506698,3.37,161.56,161.55,3.39]
[1752453507207,3.37,161.58,161.55,3.39]
[1752453507505,3.37,161.57,161.55,3.39]
[1752453507707,3.37,161.57,161.56,3.39]
[1752453508010,3.37,161.59,161.56,3.39]
[1752453508202,3.37,161.58,161.57,3.39]
[1752453508700,3.37,161.58,161.57,9.5764]
[1752453510508,3.37,161.58,161.57,3.39]
[1752453511008,3.37,161.58,161.57,9.5764]
[1752453511814,3.37,161.58,161.57,3.39]
[1752453512201,9.5561,161.58,161.55,9.577]
[1752453512507,3.55,161.56,161.55,6.187]
[1752453513003,3.55,161.56,161.55,9.577]
[1752453514108,6.1858,161.59,161.56,6.1867]
[1752453514308,3.55,161.58,161.57,3.39]
[1752453514610,9.7354,161.6,161.57,3.39]
[1752453514808,3.55,161.59,161.58,3.39]
[1752453515110,3.55,161.59,161.57,3.39]
[1752453515407,3.55,161.58,161.57,3.39]
[1752453516608,10.6852056,161.61,161.57,9.5764]
[1752453516910,3.55,161.59,161.58,3.39]
[1752453517100,3.55,161.6,161.57,3.39]
[1752453517299,3.55,161.6,161.56,3.03291905]
[1752453517300,3.55,161.59,161.58,3.39]
[1752453519203,3.55,161.58,161.56,6.1867]
[1752453519406,3.55,161.58,161.56,9.5767]
[1752453520107,3.55,161.58,161.57,6.1864]
[1752453520715,3.55,161.58,161.56,9.5767]
[1752453520908,3.55,161.58,161.55,3.39]
[1752453521215,3.55,161.58,161.56,3.39]
[1752453521408,3.55,161.58,161.55,3.39]
[1752453522309,3.55,161.58,161.56,9.5768]
[1752453522513,3.55,161.57,161.56,9.5768]
[1752453522915,3.55,161.57,161.56,6.1868]
[1752453523214,3.55,161.57,161.54,3.39]
[1752453524010,9.7365,161.57,161.54,9.5772]
[1752453524209,3.55,161.56,161.54,9.5772]
[1752453525812,3.55,161.55,161.53,9.5779]
[1752453527920,6.1872,161.55,161.53,3.39]
[1752453528122,3.55,161.54,161.51,3.39]
[1752453528623,3.55,161.53,161.51,3.39]
[1752453528837,3.55,161.52,161.5,6.1891]
[1752453529119,3.55,161.52,161.48,3.39]
[1752453529120,3.55,161.52,161.46,3.03291905]
[1752453529422,3.55,161.5,161.47,3.39]
[1752453529920,3.55,161.5,161.48,6.1896]
[1752453530120,3.55,161.5,161.48,3.39]
[1752453530614,3.55,161.49,161.48,3.39]
[1752453531325,3.55,161.49,161.48,9.5799]
[1752453533116,6.1881,161.53,161.47,3.39]
[1752453533316,6.1881,161.53,161.48,3.03291905]
[1752453533519,3.55,161.53,161.49,3.39]
[1752453533726,7.53339878,161.57,161.49,3.39]
[1752453533925,3.55,161.55,161.49,9.5794]
[1752453534121,3.55,161.54,161.49,9.5794]
[1752453534316,3.55,161.52,161.5,3.39]
[1752453534516,3.55,161.51,161.5,3.39]
[1752453534923,3.55,161.51,161.5,9.5791]
[1752453538030,6.1877,161.54,161.51,6.1887]
[1752453538231,3.55,161.53,161.52,3.39]
[1752453541130,3.47,161.52,161.51,3.37]
[1752453541632,3.47,161.51,161.49,9.5595]
[1752453542230,6.1885,161.52,161.49,9.5595]
[1752453542429,3.47,161.5,161.49,9.5595]
[1752453546539,3.47,161.5,161.49,3.37]
[1752453546737,3.47,161.5,161.48,3.37]
[1752453548240,3.47,161.49,161.48,9.5599]
[1752453549345,3.47,161.49,161.47,9.56]
[1752453549538,3.47,161.49,161.47,3.37]
[1752453549935,3.47,161.49,161.48,9.5599]
[1752453550942,3.47,161.51,161.48,3.37]
[1752453551145,4.50047973,161.55,161.48,3.37]
[1752453551339,3.03291905,161.57,161.49,3.03291905]
[1752453551340,3.47,161.52,161.49,3.03291905]
[1752453551535,3.47,161.52,161.5,3.37]
[1752453551735,3.47,161.52,161.51,3.37]
[1752453554846,3.47,161.52,161.51,9.5587]
[1752453556150,3.47,161.52,161.51,3.37]
[1752453557050,3.47,161.52,161.51,9.5587]
[1752453558755,6.1877,161.54,161.53,9.5576]
[1752453558756,3.47,161.54,161.53,9.5576]
[1752453559056,3.47,161.54,161.53,3.37]
[1752453559258,3.47,161.54,161.52,6.188]
[1752453559457,3.47,161.54,161.52,9.558]
[1752453562353,3.47,161.53,161.51,6.1885]
[1752453562556,3.47,161.53,161.51,9.5585]
[1752453563158,3.47,161.53,161.52,6.1884]
[1752453563660,3.47,161.52,161.51,6.1886]
[1752453564253,3.47,161.52,161.5,9.559]
[1752453564660,3.47,161.51,161.48,3.37]
[1752453564951,3.47,161.51,161.49,3.37]
[1752453565155,10.69244433,161.53,161.46,3.37]
[1752453565462,3.47,161.52,161.47,3.37]
[1752453566062,6.1888,161.51,161.47,3.37]
[1752453566556,3.47,161.48,161.46,3.37]
[1752453568260,3.47,161.53,161.46,3.37]
[1752453568460,3.47,161.51,161.46,3.37]
[1752453568866,3.47,161.51,161.48,6.1896]
[1752453569055,3.47,161.53,161.49,3.37]
[1752453569366,3.47,161.52,161.5,3.37]
[1752453570364,3.47,161.52,161.51,6.1887]
[1752453570565,3.47,161.52,161.51,9.5787]
[1752453572468,3.56,161.53,161.52,9.5784]
[1752453573965,3.56,161.53,161.52,3.39]
[1752453574268,8.07440489,161.53,161.52,3.39]
[1752453574669,8.07440489,161.53,161.52,6.1884]
[1752453575067,8.07440489,161.53,161.52,9.5784]
[1752453578573,3.56,161.53,161.52,9.5784]
[1752453579562,3.56,161.55,161.54,9.5776]
[1752453580165,3.56,161.57,161.56,3.39]
[1752453580474,3.03281841,161.63,161.56,3.03281841]
[1752453580475,3.56,161.6,161.56,3.03281841]
[1752453580668,3.56,161.6,161.58,9.576]
[1752453580866,3.56,161.6,161.59,3.39]
[1752453581072,8.06996152,161.6,161.59,3.39]
[1752453582074,3.56,161.59,161.58,3.39]
[1752453583074,3.56,161.59,161.58,9.5761]
[1752453583272,3.56,161.59,161.58,3.39]
[1752453583476,3.56,161.59,161.57,3.39]
[1752453583677,3.56,161.58,161.57,9.5762]
[1752453586175,4.50495986,161.61,161.59,6.1856]
[1752453586480,3.56,161.6,161.59,6.1856]
[1752453586781,8.06495986,161.62,161.61,6.1849]
[1752453586979,3.56,161.62,161.61,9.5749]
[1752453589478,3.56,161.64,161.63,9.5739]
[1752453590579,3.56,161.64,161.63,3.39]
[1752453591978,9.7438,161.64,161.63,3.39]
[1752453592282,3.56,161.63,161.61,3.39]
[1752453592971,3.56,161.62,161.61,6.1847]
[1752453593583,3.56,161.62,161.61,9.5747]
[1752453594175,3.56,161.64,161.62,3.39]
[1752453594675,3.56,161.63,161.61,6.1847]
[1752453594977,3.56,161.63,161.6,3.03119854]
[1752453595171,3.56,161.63,161.61,3.39]
[1752453595879,3.56,161.63,161.62,9.5745]
[1752453597276,3.56,161.63,161.62,3.39]
[1752453598172,3.56,161.63,161.62,9.5745]
[1752453598478,182.67119854,161.69,161.62,9.5745]
[1752453598678,179.64,161.69,161.64,12.60499854]
[1752453598875,3.56,161.66,161.65,3.39]
[1752453599076,6.182,161.69,161.65,3.39]
[1752453599276,3.56,161.67,161.66,9.5728]
[1752453599973,3.56,161.71,161.67,6.1826]
[1752453600186,3.56,161.71,161.68,3.39]
[1752453600780,6.1815,161.7,161.68,3.39]
[1752453600974,3.64,161.69,161.68,3.39]
[1752453601178,3.64,161.73,161.67,3.53]
[1752453601386,6.1816,161.7,161.66,3.03119854]
[1752453601583,3.64,161.69,161.68,3.53]
[1752453601888,6.1825,161.68,161.64,6.1835]
[1752453602185,3.64,161.67,161.66,3.53]
[1752453602587,3.64,161.7,161.66,6.183]
[1752453602886,3.64,161.7,161.67,3.53]
[1752453603188,3.64,161.68,161.67,3.53]
[1752453604084,3.64,161.74,161.67,3.03119854]
[1752453604288,3.64,161.74,161.68,3.53]
[1752453604489,3.64,161.7,161.68,3.53]
[1752453604892,3.64,161.7,161.69,3.53]
[1752453605390,3.64,161.71,161.69,6.56119854]
[1752453605593,3.64,161.75,161.69,9.21309854]
[1752453605889,3.64,161.75,161.71,3.53]
[1752453606086,3.64,161.75,161.72,3.53]
[1752453606592,3.64,161.73,161.72,3.53]
[1752453608895,3.64,161.75,161.72,9.7104]
[1752453609089,3.64,161.75,161.73,3.53]
[1752453609290,6.1795,161.76,161.72,6.1804]
[1752453609595,3.64,161.75,161.73,9.21149854]
[1752453609890,3.64,161.75,161.74,3.53]
[1752453614093,9.8196,161.75,161.74,3.53]
[1752453614695,3.64,161.75,161.74,3.53]
[1752453614886,3.64,161.75,161.73,3.53]
[1752453615089,3.64,161.75,161.72,3.53]
[1752453615289,3.64,161.73,161.72,3.53]
[1752453617692,3.64,161.75,161.66,217.00725211]
[1752453617896,3.64,161.76,161.73,3.53]
[1752453618096,3.64,161.76,161.75,3.53]
[1752453618498,3.64,161.8,161.75,3.53]
[1752453618699,6.1783,161.79,161.77,3.53]
[1752453618902,3.64,161.78,161.77,3.53]
[1752453621094,3.64,161.78,161.77,9.7088]
[1752453621790,3.64,161.78,161.77,3.53]
[1752453621996,3.64,161.78,161.76,6.56119854]
[1752453622296,3.64,161.81,161.76,3.03119854]
[1752453622599,3.64,161.81,161.78,3.53]
[1752453623395,3.64,161.83,161.79,3.53]
[1752453623896,3.03119854,161.85,161.77,3.53]
[1752453624101,3.64,161.84,161.77,3.53]
[1752453624398,9.8163,161.84,161.81,6.177]
[1752453624593,3.64,161.83,161.8,3.53]
[1752453625403,3.64,161.83,161.79,6.56119854]
[1752453625802,9.8168,161.83,161.79,12.73899854]
[1752453626000,3.64,161.82,161.79,12.73899854]
[1752453626397,9.8172,161.82,161.79,12.73899854]
[1752453626592,3.64,161.81,161.79,12.73899854]
[1752453626902,7.48227532,161.86,161.8,6.1776]
[1752453627198,7.48227532,161.86,161.8,3.53]
[1752453627398,4.45107678,161.86,161.8,3.53]
[1752453627593,3.64,161.84,161.83,3.03119854]
[1752453627798,3.64,161.86,161.83,6.56119854]
[1752453627994,3.64,161.85,161.83,9.20759854]
[1752453628193,179.4,161.87,161.83,9.20759854]
[1752453628194,3.64,161.84,161.83,12.73759854]
[1752453628593,3.64,161.84,161.83,6.56119854]
[1752453629201,3.64,161.84,161.83,3.53]
[1752453629402,3.64,161.84,161.81,6.1771]
[1752453629403,3.64,161.84,161.79,3.03119854]
[1752453629694,3.64,161.84,161.71,179.86]
[1752453629695,6.1777,161.8,161.72,3.53]
[1752453629893,3.64,161.79,161.72,3.53]
[1752453630094,3.64,161.79,161.75,3.03119854]
[1752453630291,3.64,161.79,161.76,9.7089]
[1752453630498,3.64,161.79,161.74,3.35]
[1752453630793,6.1787,161.78,161.74,9.5296]
[1752453630996,6.1787,161.78,161.75,3.35]
[1752453631196,3.38,161.76,161.75,3.35]
[1752453632904,3.38,161.76,161.75,9.5296]
[1752453633099,3.38,161.78,161.73,3.03119854]
[1752453633304,3.38,161.77,161.76,3.35]
[1752453633501,3.38,161.83,161.76,3.35]
[1752453633804,3.38,161.79,161.78,3.35]
[1752453634210,3.03119854,161.85,161.78,3.35]
[1752453634211,3.38,161.85,161.78,3.35]
[1752453634399,3.38,161.84,161.81,3.35]
[1752453634594,3.38,161.84,161.83,3.35]
[1752453634801,3.38,161.9,161.84,3.35]
[1752453635001,3.38,161.89,161.88,3.35]
[1752453635500,3.38,161.89,161.87,3.02140983]
[1752453635712,3.38,161.89,161.86,6.37140983]
[1752453636099,4.45232756,161.94,161.86,6.37140983]
[1752453636305,3.38,161.88,161.86,12.54660983]
[1752453636505,3.38,161.88,161.87,3.35]
[1752453637205,3.38,161.88,161.79,3.35]
[1752453637399,3.38,161.88,161.78,533.82]
[1752453637400,3.38,161.88,161.84,9.5261]
[1752453637605,3.38,161.88,161.84,3.35]
[1752453638209,3.38,161.86,161.84,3.35]
[1752453638404,3.38,161.85,161.84,3.35]
[1752453640111,3.38,161.85,161.84,9.5261]
[1752453641410,3.38,161.9,161.85,3.35]
[1752453641809,3.38,161.9,161.89,6.36973204]
[1752453642011,3.38,161.92,161.89,6.36973204]
[1752453642206,4.45232756,161.95,161.9,3.35]
[1752453642207,3.38,161.94,161.9,3.35]
[1752453642407,3.38,161.94,161.91,3.35]
[1752453642809,3.38,161.92,161.91,3.35]
[1752453643705,6.1729,161.93,161.91,3.35]
[1752453643911,3.38,161.93,161.92,3.35]
[1752453645206,7.4720596,161.98,161.92,3.35]
[1752453645207,6.172,161.95,161.92,9.5231]
[1752453645408,3.38,161.98,161.94,3.35]
[1752453645607,3.38,161.98,161.95,3.35]
[1752453645912,6.1712,161.97,161.95,3.35]
[1752453646104,3.38,161.96,161.95,3.35]
[1752453646506,9.5515,161.96,161.95,3.35]
[1752453646710,3.38,161.95,161.94,3.35]
[1752453647111,3.38,161.94,161.93,3.35]
[1752453647714,9.5523,161.94,161.93,3.35]
[1752453647910,9.5523,161.94,161.91,12.54293204]
[1752453648110,3.38,161.93,161.92,3.35]
[1752453648814,3.38,161.92,161.91,6.36973204]
[1752453649504,3.01973204,161.99,161.91,12.54293204]
[1752453649710,3.38,161.98,161.92,3.35]
[1752453650209,3.01973204,161.99,161.93,3.35]
[1752453650413,3.38,161.94,161.93,3.35]
[1752453650709,3.01973204,161.99,161.93,3.35]
[1752453650909,1.07483708,162.0,161.93,6.36973204]
[1752453650910,3.38,161.96,161.93,6.36973204]
[1752453651210,9.5516,161.96,161.94,3.35]
[1752453651409,9.5516,161.96,161.93,9.19213204]
[1752453651410,9.5516,161.96,161.95,3.35]
[1752453652311,1.07483708,162.0,161.93,9.19213204]
[1752453652312,6.1719,161.95,161.93,3.01973204]
[1752453652518,9.5519,161.95,161.94,3.35]
[1752453652810,3.38,161.95,161.94,3.35]
[1752453653512,9.5519,161.95,161.94,3.35]
[1752453654816,3.38,161.95,161.94,3.35]
[1752453655517,3.38,161.97,161.96,3.35]
[1752453656210,4.45232756,162.02,161.96,3.35]
[1752453656410,6.1703,162.0,161.97,3.35]
[1752453656611,3.38,162.01,161.97,3.35]
[1752453657011,6.1704,161.99,161.97,3.35]
[1752453657313,3.38,161.98,161.97,3.35]
[1752453657816,3.38,161.98,161.97,6.1712]
[1752453658116,3.38,161.98,161.97,3.35]
[1752453658316,3.38,161.98,161.95,3.01973204]
[1752453658317,3.38,161.97,161.95,6.36973204]
[1752453658913,3.38,161.97,161.96,3.35]
[1752453659916,3.38,162.02,161.95,3.01973204]
[1752453660118,3.38,162.0,161.94,3.35]
[1752453660318,6.172,161.95,161.93,9.19233204]
[1752453660518,3.57,161.94,161.93,6.46973204]
[1752453660821,3.57,161.96,161.89,3.01973204]
[1752453661020,3.01973204,161.98,161.92,6.1728]
[1752453661225,3.57,161.97,161.92,3.45]
[1752453661721,3.57,161.97,161.9,3.45]
[1752453661916,3.57,161.94,161.9,3.45]
[1752453662219,3.57,161.97,161.93,9.6227]
[1752453662721,3.01973204,162.0,161.91,3.01973204]
[1752453662922,3.57,161.96,161.95,3.45]
[1752453663125,9.7415,161.96,161.95,3.45]
[1752453663323,3.01973204,162.0,161.91,3.01973204]
[1752453663324,3.57,161.95,161.91,3.01973204]
[1752453663520,3.57,161.94,161.93,3.45]
[1752453663824,3.57,161.95,161.94,3.45]
[1752453664422,3.57,161.94,161.8,180.62]
[1752453664622,3.01973204,162.0,161.8,180.62]
[1752453664623,3.57,161.93,161.92,3.45]
[1752453665022,3.57,161.93,161.91,6.1733]
[1752453665222,3.57,161.97,161.9,3.45]
[1752453665423,3.57,161.94,161.9,3.45]
[1752453665627,3.57,161.93,161.92,9.6228]